bitfinex-derivatives/quotes_BTCF0:USTF0_20250322
["timestamp","ask_amount","ask_price","bid_price","bid_amount"]
[1742619039935,0.29721815,84355.0,84354.0,1.3406011]
[1742619049352,0.29721815,84355.0,84354.0,1.55415539]
[1742619050352,0.32741815,84355.0,84354.0,1.55415539]
[1742619050853,0.36051815,84355.0,84354.0,1.55415539]
[1742619051742,0.36051815,84355.0,84354.0,1.3406011]
[1742619053251,0.36051815,84355.0,84354.0,1.2284411]
[1742619053453,0.36051815,84355.0,84354.0,1.3406011]
[1742619054053,0.36051815,84355.0,84354.0,1.2284411]
[1742619054254,0.36051815,84355.0,84354.0,1.3406011]
[1742619060268,0.36051815,84355.0,84354.0,1.55341989]
[1742619062877,0.36051815,84355.0,84354.0,1.3406011]
[1742619064577,0.29721815,84355.0,84354.0,1.3406011]
[1742619064870,0.36201815,84355.0,84354.0,1.3406011]
[1742619067272,0.17862655,84355.0,84354.0,1.3406011]
[1742619067578,0.29721815,84355.0,84354.0,1.3406011]
[1742619068474,0.17862655,84355.0,84354.0,1.3406011]
[1742619068969,0.29721815,84355.0,84354.0,1.55341989]
[1742619069171,0.17862655,84355.0,84354.0,1.55341989]
[1742619069575,0.118586,84359.0,84358.0,0.0592937]
[1742619070282,0.149686,84359.0,84358.0,0.0592937]
[1742619070581,0.118586,84359.0,84358.0,0.0592937]
[1742619071486,0.118586,84359.0,84358.0,0.0895937]
[1742619072481,0.118586,84359.0,84358.0,0.21068399]
[1742619074088,0.118586,84359.0,84358.0,1.07188399]
[1742619082192,0.150786,84359.0,84358.0,1.07188399]
[1742619082379,0.182786,84359.0,84358.0,0.95972399]
[1742619082581,0.182786,84359.0,84358.0,1.07188399]
[1742619083291,0.182786,84359.0,84358.0,0.95972399]
[1742619083492,0.182786,84359.0,84358.0,1.07188399]
[1742619086687,0.118586,84359.0,84358.0,0.95972399]
[1742619086880,0.118586,84359.0,84358.0,1.07188399]
[1742619088889,0.149786,84359.0,84358.0,1.07188399]
[1742619089487,0.149786,84359.0,84358.0,1.10248399]
[1742619090090,0.181786,84359.0,84358.0,1.10248399]
[1742619091492,0.181786,84359.0,84358.0,1.82408399]
[1742619095397,0.181786,84359.0,84358.0,1.10248399]
[1742619095595,0.181786,84359.0,84358.0,1.82408399]
[1742619097094,0.212786,84359.0,84358.0,1.82408399]
[1742619099786,0.0632,84359.0,84358.0,1.82408399]
[1742619100602,0.0312,84359.0,84358.0,1.82408399]
[1742619101597,0.0307,84362.0,84361.0,0.1185832]
[1742619101802,0.0624,84362.0,84361.0,0.1185832]
[1742619102004,0.0624,84362.0,84361.0,0.1837832]
[1742619102906,0.0624,84362.0,84361.0,0.2149832]
[1742619103606,0.1185741,84368.0,84361.0,0.0964]
[1742619103799,0.1185741,84368.0,84367.0,0.4793719]
[1742619104105,0.1201741,84368.0,84367.0,0.5915319]
[1742619104309,0.29878549,84368.0,84367.0,0.6552319]
[1742619106701,0.34698549,84368.0,84367.0,0.5430719]
[1742619106897,0.34698549,84368.0,84367.0,0.6552319]
[1742619115708,0.32248549,84368.0,84367.0,0.6552319]
[1742619116205,0.34698549,84368.0,84367.0,0.6552319]
[1742619121313,0.32328549,84368.0,84367.0,0.6552319]
[1742619121908,0.29878549,84368.0,84367.0,0.6552319]
[1742619128123,0.29878549,84368.0,84367.0,0.5430719]
[1742619128325,0.29878549,84368.0,84367.0,0.6552319]
[1742619128512,0.34698549,84368.0,84367.0,0.6552319]
[1742619128712,0.37738549,84368.0,84367.0,0.6552319]
[1742619128914,0.37738549,84368.0,84367.0,0.5430719]
[1742619129109,0.37738549,84368.0,84367.0,0.6552319]
[1742619129717,0.37738549,84368.0,84367.0,0.5430719]
[1742619129923,0.37738549,84368.0,84367.0,0.6552319]
[1742619131335,0.34698549,84368.0,84367.0,0.6552319]
[1742619132223,0.34698549,84368.0,84367.0,0.5430719]
[1742619132428,0.34698549,84368.0,84367.0,0.6552319]
[1742619133035,0.34698549,84368.0,84367.0,0.5430719]
[1742619133234,0.34698549,84368.0,84367.0,0.6552319]
[1742619134743,0.34698549,84368.0,84367.0,0.5430719]
[1742619134943,0.34698549,84368.0,84367.0,0.6552319]
[1742619137745,0.29878549,84368.0,84367.0,0.6552319]
[1742619138935,0.16102519,84368.0,84367.0,0.6552319]
[1742619139243,0.0592703,84392.0,84375.0,0.1185635]
[1742619139244,0.17796294,84376.0,84375.0,0.1185635]
[1742619139440,0.17912294,84376.0,84375.0,0.3252635]
[1742619139745,0.35798582,84376.0,84375.0,0.3252635]
[1742619139943,0.35798582,84376.0,84375.0,0.33854579]
[1742619154052,0.35798582,84376.0,84375.0,0.10786229]
[1742619154247,0.35798582,84376.0,84375.0,0.21998229]
[1742619154648,0.35798582,84376.0,84375.0,0.33854579]
[1742619156450,0.35798582,84376.0,84375.0,0.22642579]
[1742619156653,0.35798582,84376.0,84375.0,0.33854579]
[1742619157656,0.35798582,84376.0,84375.0,0.69934579]
[1742619157956,0.35798582,84376.0,84375.0,0.66804579]
[1742619158257,0.38248582,84376.0,84375.0,0.66804579]
[1742619158658,0.40618582,84376.0,84375.0,0.66804579]
[1742619163770,0.40618582,84376.0,84375.0,0.54948229]
[1742619172153,0.52470363,84376.0,84375.0,0.43736229]
[1742619172463,0.55710363,84376.0,84375.0,0.54948229]
[1742619174566,0.55710363,84376.0,84375.0,0.18868229]
[1742619178168,0.55710363,84376.0,84375.0,0.07656229]
[1742619178371,0.55710363,84376.0,84375.0,0.18868229]
[1742619189789,0.55710363,84376.0,84375.0,0.1754]
[1742619190872,0.55710363,84376.0,84375.0,0.0626]
[1742619191069,0.55710363,84376.0,84375.0,0.17472]
[1742619192776,0.55710363,84376.0,84375.0,0.17532]
[1742619193383,0.52470363,84376.0,84375.0,0.17532]
[1742619193678,0.52470363,84376.0,84375.0,0.17472]
[1742619193884,0.52470363,84376.0,84375.0,0.17532]
[1742619194085,0.52470363,84376.0,84375.0,0.17472]
[1742619200090,0.52470363,84376.0,84375.0,0.0626]
[1742619200285,0.52470363,84376.0,84375.0,0.17472]
[1742619207089,0.52470363,84376.0,84375.0,0.20612]
[1742619210808,0.52470363,84376.0,84375.0,0.13939284]
[1742619211309,0.52470363,84376.0,84375.0,0.0314]
[1742619213311,0.47650363,84376.0,84375.0,0.0314]
[1742619213607,0.47650363,84376.0,84375.0,0.14348]
[1742619213807,0.47650363,84376.0,84375.0,0.0935]
[1742619215307,0.47650363,84376.0,84375.0,0.20558]
[1742619215609,0.47650363,84376.0,84375.0,0.20618]
[1742619215919,0.47650363,84376.0,84375.0,0.20558]
[1742619223212,0.47650363,84376.0,84375.0,0.0935]
[1742619223516,0.47650363,84376.0,84375.0,0.20558]
[1742619223922,0.47650363,84376.0,84375.0,0.20622]
[1742619224120,0.47650363,84376.0,84375.0,0.20558]
[1742619225023,0.47650363,84376.0,84375.0,0.20622]
[1742619225225,0.47650363,84376.0,84375.0,0.20558]
[1742619225919,0.47650363,84376.0,84375.0,0.2067]
[1742619226125,0.47650363,84376.0,84375.0,0.20558]
[1742619231124,0.47650363,84376.0,84375.0,0.20618]
[1742619231428,0.47650363,84376.0,84375.0,0.20558]
[1742619233430,0.50760363,84376.0,84375.0,0.20558]
[1742619233627,0.54030363,84376.0,84375.0,0.20558]
[1742619235523,0.54030363,84376.0,84375.0,0.0935]
[1742619235725,0.54030363,84376.0,84375.0,0.20558]
[1742619239836,0.55321859,84376.0,84375.0,0.20558]
[1742619240337,0.54030363,84376.0,84375.0,0.20558]
[1742619242722,0.54030363,84376.0,84375.0,0.20618]
[1742619242930,0.54030363,84376.0,84375.0,0.20558]
[1742619244037,0.54030363,84376.0,84375.0,0.20622]
[1742619244342,0.54030363,84376.0,84375.0,0.20558]
[1742619246032,0.54030363,84376.0,84375.0,0.0935]
[1742619246232,0.54030363,84376.0,84375.0,0.20558]
[1742619250543,0.54030363,84376.0,84375.0,0.17418]
[1742619251243,0.54030363,84376.0,84375.0,0.0621]
[1742619276158,0.54030363,84376.0,84375.0,0.06274]
[1742619276350,0.54030363,84376.0,84375.0,0.0621]
[1742619280347,0.54030363,84376.0,84375.0,0.0627]
[1742619280551,0.54030363,84376.0,84375.0,0.0621]
[1742619299976,0.54030363,84376.0,84375.0,0.0633]
[1742619300177,0.54030363,84376.0,84375.0,0.0621]
[1742619305479,0.54030363,84376.0,84375.0,0.0627]
[1742619305679,0.54030363,84376.0,84375.0,0.0621]
[1742619314577,0.54030363,84376.0,84375.0,0.0627]
[1742619314783,0.54030363,84376.0,84375.0,0.0621]
[1742619319784,0.54030363,84376.0,84375.0,0.06278]
[1742619320087,0.54030363,84376.0,84375.0,0.0621]
[1742619327087,0.54030363,84376.0,84375.0,0.0627]
[1742619327285,0.54030363,84376.0,84375.0,0.0621]
[1742619330990,0.54030363,84376.0,84375.0,0.06322]
[1742619331295,0.54030363,84376.0,84375.0,0.0621]
[1742619339896,0.29865873,84376.0,84375.0,0.1806635]
[1742619340116,0.1,84400.0,84375.0,0.0627]
[1742619340294,0.07927365,84397.0,84391.0,0.3608]
[1742619340495,0.00076,84397.0,84396.0,0.3608]
[1742619340698,0.00076,84397.0,84396.0,0.36156]
[1742619340892,0.17739146,84397.0,84396.0,0.36156]
[1742619341094,0.02769146,84397.0,84396.0,0.480094]
[1742619341397,0.26065811,84398.0,84397.0,0.1185326]
[1742619341595,0.26137811,84398.0,84397.0,0.1191726]
[1742619342387,0.00072,84398.0,84397.0,0.1191726]
[1742619342591,8e-05,84398.0,84397.0,0.1191726]
[1742619342790,0.18415422,84430.0,84397.0,0.15064]
[1742619343006,0.00060001,84429.0,84428.0,0.5385335]
[1742619343199,0.0592401,84435.0,84428.0,0.3915]
[1742619343397,0.1780048,84429.0,84428.0,0.50354]
[1742619343592,0.29717172,84429.0,84428.0,0.50354]
[1742619343793,0.1191677,84429.0,84428.0,0.50354]
[1742619344202,0.41553592,84429.0,84428.0,0.50354]
[1742619345402,0.41553592,84429.0,84428.0,0.54785229]
[1742619346803,0.47823592,84429.0,84428.0,0.55683182]
[1742619349498,0.47823592,84429.0,84428.0,0.49519182]
[1742619349901,0.47823592,84429.0,84428.0,0.38319182]
[1742619350106,0.47823592,84429.0,84428.0,0.49519182]
[1742619351306,0.47823592,84429.0,84428.0,0.38319182]
[1742619351510,0.47823592,84429.0,84428.0,0.49519182]
[1742619352904,0.47823592,84429.0,84428.0,0.38319182]
[1742619353101,0.47823592,84429.0,84428.0,0.37421229]
[1742619361612,0.47823592,84429.0,84428.0,0.3614]
[1742619362310,0.47823592,84429.0,84428.0,0.37406196]
[1742619364910,0.0592459,84427.0,84420.0,0.11213774]
[1742619365100,0.1184989,84421.0,84420.0,0.00077774]
[1742619365306,0.1192589,84421.0,84420.0,0.00077774]
[1742619365607,0.4161872,84421.0,84420.0,0.00077774]
[1742619366010,0.4808872,84421.0,84420.0,0.01298198]
[1742619366207,0.4808872,84421.0,84420.0,0.00077774]
[1742619367210,0.4808872,84421.0,84420.0,0.0130972]
[1742619372003,0.4808872,84421.0,84420.0,0.00077774]
[1742619374513,0.4161872,84421.0,84420.0,0.00077774]
[1742619374714,0.4800872,84421.0,84420.0,0.00077774]
[1742619374914,0.4800872,84421.0,84420.0,0.06137774]
[1742619375108,0.4800872,84421.0,84420.0,0.11337774]
[1742619379811,0.4800872,84421.0,84420.0,0.00077774]
[1742619384619,0.4800872,84421.0,84420.0,0.00017774]
[1742619384811,0.4800872,84421.0,84420.0,0.00077774]
[1742619389212,0.1185172,84408.0,84407.0,0.0616]
[1742619389411,0.1185172,84408.0,84407.0,0.00929707]
[1742619389617,0.29692956,84408.0,84407.0,0.00929707]
[1742619389826,0.4161842,84408.0,84407.0,0.00929707]
[1742619390121,0.4811842,84408.0,84407.0,0.0006]
[1742619390320,0.4811842,84408.0,84407.0,0.01289756]
[1742619390527,0.4811842,84408.0,84407.0,0.0016]
[1742619393121,0.4811842,84408.0,84407.0,0.01376996]
[1742619408544,0.4811842,84408.0,84407.0,0.04446996]
[1742619414941,0.4811842,84408.0,84407.0,0.01376996]
[1742619447864,0.4811842,84408.0,84407.0,0.01316996]
[1742619448062,0.4811842,84408.0,84407.0,0.01384996]
[1742619492504,0.4161842,84408.0,84407.0,0.01384996]
[1742619492711,0.1185172,84408.0,84407.0,0.34310856]
[1742619493007,0.1191972,84408.0,84407.0,0.01384996]
[1742619493207,0.1191972,84408.0,84407.0,0.13236856]
[1742619493403,0.1191572,84408.0,84407.0,0.13236856]
[1742619493604,0.1820572,84408.0,84407.0,0.30606856]
[1742619495607,0.1820572,84408.0,84407.0,0.66686856]
[1742619498808,0.1814172,84408.0,84407.0,0.66686856]
[1742619499911,0.2124172,84408.0,84407.0,0.66686856]
[1742619501812,0.2124172,84408.0,84407.0,0.55486856]
[1742619502116,0.2130972,84408.0,84407.0,0.48664996]
[1742619502705,0.33157008,84408.0,84407.0,0.48664996]
[1742619502900,0.33157008,84408.0,84407.0,0.12584996]
[1742619503107,0.33157008,84408.0,84407.0,0.48664996]
[1742619503517,0.33157008,84408.0,84407.0,0.37464996]
[1742619503918,0.33157008,84408.0,84407.0,0.48664996]
[1742619504113,0.50967409,84408.0,84407.0,0.48664996]
[1742619505213,0.50967409,84408.0,84407.0,0.37464996]
[1742619505421,0.50967409,84408.0,84407.0,0.48664996]
[1742619506017,0.50967409,84408.0,84407.0,0.37464996]
[1742619506216,0.50967409,84408.0,84407.0,0.48664996]
[1742619519426,0.50967409,84408.0,84407.0,0.37464996]
[1742619519631,0.50967409,84408.0,84407.0,0.48664996]
[1742619520323,0.50967409,84408.0,84407.0,0.37464996]
[1742619520527,0.50967409,84408.0,84407.0,0.48664996]
[1742619521123,0.50967409,84408.0,84407.0,0.37464996]
[1742619521323,0.50967409,84408.0,84407.0,0.48664996]
[1742619526930,0.50967409,84408.0,84407.0,0.12584996]
[1742619527132,0.50967409,84408.0,84407.0,0.48664996]
[1742619528837,0.50967409,84408.0,84407.0,0.12584996]
[1742619529030,0.50967409,84408.0,84407.0,0.48664996]
[1742619529930,0.50967409,84408.0,84407.0,0.12584996]
[1742619530138,0.50967409,84408.0,84407.0,0.48664996]
[1742619540148,0.50967409,84408.0,84407.0,0.12584996]
[1742619540350,0.50967409,84408.0,84407.0,0.48664996]
[1742619546755,0.50967409,84408.0,84407.0,0.37464996]
[1742619547358,0.50967409,84408.0,84407.0,0.01384996]
[1742619547549,0.50967409,84408.0,84407.0,0.01316996]
[1742619547857,0.50967409,84408.0,84407.0,0.01392996]
[1742619553952,0.50967409,84408.0,84407.0,0.01316996]
[1742619554162,0.50967409,84408.0,84407.0,0.01384996]
[1742619558558,0.50967409,84408.0,84407.0,0.01316996]
[1742619558862,0.50967409,84408.0,84407.0,0.01384996]
[1742619559063,0.50967409,84408.0,84407.0,0.01316996]
[1742619559364,0.50967409,84408.0,84407.0,0.01384996]
[1742619559951,0.50967409,84408.0,84407.0,0.01316996]
[1742619560158,0.50967409,84408.0,84407.0,0.01388996]
[1742619562166,0.50967409,84408.0,84407.0,0.01316996]
[1742619562366,0.50967409,84408.0,84407.0,0.01384996]
[1742619564866,0.50967409,84408.0,84407.0,0.01316996]
[1742619565371,0.50967409,84408.0,84407.0,0.01388996]
[1742619579081,0.50967409,84408.0,84407.0,0.00336722]
[1742619579286,0.50967409,84408.0,84407.0,0.00072]
[1742619581774,0.53440519,84408.0,84407.0,0.00072]
[1742619582575,0.50967409,84408.0,84407.0,0.00072]
[1742619584785,0.1185214,84405.0,84404.0,0.03]
[1742619584985,0.1192014,84405.0,84404.0,0.03068]
[1742619585186,0.36144706,84405.0,84404.0,0.03068]
[1742619585587,0.47991994,84405.0,84404.0,0.03068]
[1742619585988,0.47991994,84405.0,84404.0,0.0426649]
[1742619586388,0.47991994,84405.0,84404.0,0.0436649]
[1742619587782,0.47991994,84405.0,84404.0,0.0446649]
[1742619592788,0.47991994,84405.0,84404.0,0.01009031]
[1742619592983,0.47991994,84405.0,84404.0,0.0026]
[1742619593882,0.48091994,84405.0,84404.0,0.0016]
[1742619594092,0.48091994,84405.0,84404.0,0.01390029]
[1742619594282,0.48091994,84405.0,84404.0,0.0016]
[1742619594680,0.48091994,84405.0,84403.0,0.0311]
[1742619594887,0.1185228,84404.0,84403.0,0.03174]
[1742619595087,0.1192828,84404.0,84403.0,0.03174]
[1742619595288,0.36131509,84404.0,84403.0,0.03174]
[1742619595689,0.47979218,84404.0,84403.0,0.03174]
[1742619597384,0.47979218,84404.0,84403.0,0.04387896]
[1742619597790,0.47979218,84404.0,84403.0,0.01277896]
[1742619598084,0.48079218,84404.0,84403.0,0.01277896]
[1742619598288,0.48079218,84404.0,84403.0,0.04427896]
[1742619598489,0.48079218,84404.0,84403.0,0.01213896]
[1742619598696,0.48079218,84404.0,84403.0,0.0006]
[1742619599196,0.48079218,84404.0,84403.0,0.0321]
[1742619599601,0.48079218,84404.0,84403.0,0.0444573]
[1742619605298,0.48079218,84404.0,84403.0,0.0446573]
[1742619606405,0.47979218,84404.0,84403.0,0.0446573]
[1742619606595,0.48079218,84404.0,84403.0,0.0446573]
[1742619609605,0.47979218,84404.0,84403.0,0.0446573]
[1742619609807,0.48079218,84404.0,84403.0,0.0446573]
[1742619610411,0.47979218,84404.0,84403.0,0.0446573]
[1742619610709,0.48079218,84404.0,84403.0,0.0446573]
[1742619612309,0.48079218,84404.0,84403.0,0.0444573]
[1742619612911,0.48079218,84404.0,84403.0,0.0446573]
[1742619614126,0.48079218,84404.0,84403.0,0.4054573]
[1742619616231,0.48079218,84404.0,84403.0,0.4052573]
[1742619621540,0.48079218,84404.0,84403.0,0.3737573]
[1742619621928,0.48079218,84404.0,84403.0,0.4050573]
[1742619623933,0.48079218,84404.0,84403.0,0.4048573]
[1742619624441,0.48079218,84404.0,84403.0,0.5168573]
[1742619630732,0.48079218,84404.0,84403.0,0.1560573]
[1742619630932,0.48079218,84404.0,84403.0,0.5168573]
[1742619633942,0.48079218,84404.0,84403.0,0.1560573]
[1742619634143,0.48079218,84404.0,84403.0,0.5168573]
[1742619634744,0.48079218,84404.0,84403.0,0.4857573]
[1742619641539,0.48079218,84404.0,84403.0,0.1249573]
[1742619641739,0.48079218,84404.0,84403.0,0.4857573]
[1742619652442,0.48079218,84404.0,84403.0,0.1249573]
[1742619652641,0.48079218,84404.0,84403.0,0.4857573]
[1742619661959,0.48079218,84404.0,84403.0,0.6042815]
[1742619662161,0.48079218,84404.0,84403.0,0.4857573]
[1742619666564,0.48079218,84404.0,84403.0,0.1249573]
[1742619666755,0.48079218,84404.0,84403.0,0.4857573]
[1742619672566,0.48079218,84404.0,84403.0,0.5172573]
[1742619681068,0.48079218,84404.0,84403.0,0.1564573]
[1742619681269,0.48079218,84404.0,84403.0,0.5172573]
[1742619697077,0.36231509,84404.0,84403.0,0.5172573]
[1742619699184,0.36231509,84404.0,84403.0,0.4857573]
[1742619702890,0.36231509,84404.0,84403.0,0.1249573]
[1742619703096,0.36231509,84404.0,84403.0,0.4857573]
[1742619704091,0.36231509,84404.0,84403.0,0.3737573]
[1742619704393,0.36231509,84404.0,84403.0,0.4857173]
[1742619704878,0.36231509,84404.0,84403.0,0.3737573]
[1742619705083,0.36231509,84404.0,84403.0,0.4857173]
[1742619706780,0.36231509,84404.0,84403.0,0.1249173]
[1742619706987,0.36231509,84404.0,84403.0,0.4857173]
[1742619708686,0.36231509,84404.0,84403.0,0.1249173]
[1742619708889,0.36231509,84404.0,84403.0,0.4857173]
[1742619710792,0.36231509,84404.0,84403.0,0.1249173]
[1742619711093,0.36231509,84404.0,84403.0,0.4857173]
[1742619713096,0.36231509,84404.0,84403.0,0.1249173]
[1742619713296,0.36231509,84404.0,84403.0,0.4857173]
[1742619713492,0.36231509,84404.0,84403.0,0.1249173]
[1742619713689,0.36231509,84404.0,84403.0,0.4857173]
[1742619718491,0.36231509,84404.0,84403.0,0.1249173]
[1742619718687,0.36231509,84404.0,84403.0,0.4857173]
[1742619719000,0.48079358,84404.0,84403.0,0.2739573]
[1742619719299,0.1185256,84402.0,84401.0,0.11196]
[1742619719499,0.1194456,84402.0,84401.0,0.11264]
[1742619719800,0.29668925,84402.0,84401.0,0.00068]
[1742619720001,0.41516774,84402.0,84401.0,0.00068]
[1742619720401,0.41916774,84402.0,84401.0,0.00068]
[1742619721689,0.41916774,84402.0,84401.0,0.01535599]
[1742619721896,0.42316774,84402.0,84401.0,0.00068]
[1742619725003,0.42316774,84402.0,84401.0,0.01487363]
[1742619729205,0.48686774,84402.0,84401.0,0.01487363]
[1742619734510,0.51806774,84402.0,84401.0,0.04607363]
[1742619737006,0.51806774,84402.0,84401.0,0.01487363]
[1742619737906,0.51806774,84402.0,84401.0,3e-08]
[1742619738108,0.51806774,84402.0,84401.0,1e-07]
[1742619738311,0.51806774,84402.0,84401.0,0.0006]
[1742619741117,0.1185284,84400.0,84399.0,0.12677843]
[1742619741417,0.1198084,84400.0,84399.0,0.13588484]
[1742619741607,0.3608976,84400.0,84399.0,0.13588484]
[1742619741807,0.4793789,84400.0,84399.0,0.13588484]
[1742619742115,0.4793789,84400.0,84399.0,0.02392484]
[1742619742618,0.4853789,84400.0,84399.0,0.02392484]
[1742619743612,0.4853789,84400.0,84399.0,4e-08]
[1742619744208,0.1185396,84392.0,84391.0,0.0319]
[1742619744409,0.1198196,84392.0,84391.0,0.05047205]
[1742619744608,0.29837742,84392.0,84391.0,0.05047205]
[1742619745004,0.48096153,84392.0,84391.0,0.05047205]
[1742619745524,0.48196153,84392.0,84391.0,0.05047205]
[1742619746322,0.48296153,84392.0,84391.0,0.05047205]
[1742619746917,0.48296153,84392.0,84391.0,0.05930097]
[1742619748514,0.48296153,84392.0,84391.0,0.05047205]
[1742619748818,0.48296153,84392.0,84391.0,0.01797205]
[1742619749120,0.1185481,84386.0,84385.0,0.032]
[1742619749420,0.1199081,84386.0,84385.0,0.03268]
[1742619749622,0.29676056,84386.0,84385.0,0.03268]
[1742619749918,0.4152559,84386.0,84385.0,0.03268]
[1742619750123,0.4778559,84386.0,84385.0,0.03268]
[1742619750419,0.4778559,84386.0,84385.0,0.05083964]
[1742619750609,0.4778559,84386.0,84385.0,0.05183964]
[1742619755218,0.4778559,84386.0,84385.0,0.08333964]
[1742619771828,0.5091559,84386.0,84385.0,0.08333964]
[1742619795644,0.5091559,84386.0,84385.0,0.05183964]
[1742619825669,0.5091559,84386.0,84385.0,0.08493964]
[1742619833781,0.4454559,84386.0,84385.0,0.08493964]
[1742619833976,0.4773559,84386.0,84385.0,0.08493964]
[1742619838377,0.4454559,84386.0,84385.0,0.08493964]
[1742619839578,0.4768559,84386.0,84385.0,0.08493964]
[1742619840585,0.4768559,84386.0,84385.0,0.19685964]
[1742619841781,0.4768559,84386.0,84385.0,0.55765964]
[1742619843988,0.4768559,84386.0,84385.0,0.44573964]
[1742619844186,0.4768559,84386.0,84385.0,0.55765964]
[1742619846490,0.4768559,84386.0,84385.0,0.44573964]
[1742619846689,0.4768559,84386.0,84385.0,0.55765964]
[1742619852501,0.4768559,84386.0,84385.0,0.19685964]
[1742619853592,0.5090559,84386.0,84385.0,0.19685964]
[1742619863500,0.5090559,84386.0,84385.0,0.01983964]
[1742619863706,0.5090559,84386.0,84385.0,0.13175964]
[1742619866408,0.5090559,84386.0,84385.0,0.01983964]
[1742619867603,0.5090559,84386.0,84385.0,0.01915964]
[1742619867806,0.5090559,84386.0,84385.0,0.01975964]
[1742619874506,0.5090559,84386.0,84385.0,0.01915964]
[1742619876113,0.5090559,84386.0,84385.0,0.00306566]
[1742619876312,0.5090559,84386.0,84385.0,0.001]
[1742619877804,0.5090559,84386.0,84385.0,0.02119948]
[1742619878197,0.5090559,84386.0,84385.0,0.05329948]
[1742619880013,0.5090559,84386.0,84385.0,0.05393948]
[1742619880213,0.5090559,84386.0,84385.0,0.05329948]
[1742619885119,0.5090559,84386.0,84385.0,0.05389948]
[1742619886916,0.5090559,84386.0,84385.0,0.00866935]
[1742619887117,0.5090559,84386.0,84385.0,0.0006]
[1742619888019,0.5090559,84386.0,84385.0,0.02070209]
[1742619888217,0.5090559,84386.0,84385.0,0.0006]
[1742619889010,0.5090559,84386.0,84385.0,0.02120653]
[1742619889213,0.5090559,84386.0,84385.0,0.0006]
[1742619891214,0.5090559,84386.0,84385.0,0.02102198]
[1742619891414,0.53422496,84386.0,84385.0,0.0006]
[1742619892014,0.5090559,84386.0,84385.0,0.0006]
[1742619893417,0.89502496,84386.0,84385.0,0.0006]
[1742619893617,0.1185509,84384.0,84383.0,0.03910607]
[1742619893922,0.1198309,84384.0,84383.0,0.03910607]
[1742619894227,0.35824522,84384.0,84383.0,0.03910607]
[1742619894424,0.47674899,84384.0,84383.0,0.03910607]
[1742619894815,0.47674899,84384.0,84383.0,0.04010607]
[1742619895619,0.47674899,84384.0,84383.0,0.01000607]
[1742619896720,0.47674899,84384.0,84383.0,0.03198904]
[1742619896924,0.47674899,84384.0,84383.0,0.00217774]
[1742619900818,0.47674899,84384.0,84383.0,0.03152245]
[1742619901326,0.1185551,84381.0,84380.0,0.11192]
[1742619901623,0.1198351,84381.0,84380.0,0.11192]
[1742619901826,0.1185635,84375.0,84374.0,0.0306]
[1742619902027,0.1199235,84375.0,84374.0,0.16371338]
[1742619902229,0.29852733,84375.0,84374.0,0.05179338]
[1742619902433,0.29852733,84375.0,84374.0,0.13311338]
[1742619902625,0.51283391,84375.0,84374.0,0.13311338]
[1742619902825,0.51283391,84375.0,84374.0,0.14216817]
[1742619903427,0.51283391,84375.0,84374.0,0.14516817]
[1742619904430,0.51283391,84375.0,84374.0,0.17836817]
[1742619904629,0.47963391,84375.0,84374.0,0.21456817]
[1742619905927,0.47963391,84375.0,84374.0,0.10264817]
[1742619906130,0.47963391,84375.0,84374.0,0.06944817]
[1742619906334,0.47963391,84375.0,84374.0,0.03724817]
[1742619906931,0.47963391,84375.0,84374.0,0.02819338]
[1742619911240,0.47963391,84375.0,84374.0,0.02751338]
[1742619913940,0.47963391,84375.0,84374.0,0.02811338]
[1742619914149,0.47963391,84375.0,84374.0,0.02751338]
[1742619915937,0.47963391,84375.0,84374.0,0.05801338]
[1742619916138,0.47963391,84375.0,84374.0,0.05861338]
[1742619916838,0.47963391,84375.0,84374.0,0.11541338]
[1742619931564,0.47963391,84375.0,84374.0,0.09071338]
[1742619931765,0.51103391,84375.0,84374.0,0.09071338]
[1742619933456,0.51103391,84375.0,84374.0,0.05861338]
[1742619939758,0.51103391,84375.0,84374.0,0.02811338]
[1742619941668,0.51103391,84375.0,84374.0,0.02751338]
[1742619942068,0.51103391,84375.0,84374.0,0.02811338]
[1742619942667,0.51103391,84375.0,84374.0,0.02751338]
[1742619942866,0.51103391,84375.0,84374.0,0.02811338]
[1742619944365,0.51103391,84375.0,84374.0,0.02751338]
[1742619944568,0.51103391,84375.0,84374.0,0.02811338]
[1742619948868,0.51103391,84375.0,84374.0,0.02751338]
[1742619949066,0.51103391,84375.0,84374.0,0.02879338]
[1742619955365,0.51103391,84375.0,84374.0,0.00597288]
[1742619955571,0.51103391,84375.0,84374.0,0.00469288]
[1742619956476,0.1185719,84369.0,84368.0,0.0152365]
[1742619956670,0.1198519,84369.0,84368.0,0.02474954]
[1742619956869,0.1855519,84369.0,84368.0,0.02474954]
[1742619957069,0.19510478,84369.0,84368.0,0.13606954]
[1742619957272,0.31363242,84369.0,84368.0,0.13666954]
[1742619957769,0.31363242,84369.0,84368.0,0.16685629]
[1742619957975,0.30407954,84369.0,84368.0,0.16685629]
[1742619958568,0.30407954,84369.0,84368.0,0.05993629]
[1742619958764,0.30407954,84369.0,84368.0,0.17185629]
[1742619961366,0.30407954,84369.0,84368.0,0.20505629]
[1742619967973,0.30407954,84369.0,84368.0,0.56585629]
[1742619968480,0.30407954,84369.0,84368.0,0.55061979]
[1742619968681,0.30407954,84369.0,84368.0,0.51741979]
[1742619968980,0.33657954,84369.0,84368.0,0.40549979]
[1742619972083,0.33657954,84369.0,84368.0,0.04469979]
[1742619975181,0.33657954,84369.0,84368.0,0.06939979]
[1742619975383,0.30407954,84369.0,84368.0,0.06939979]
[1742619975583,0.30407954,84369.0,84368.0,0.09229979]
[1742619977684,0.30415954,84369.0,84368.0,0.09229979]
[1742619981787,0.30415954,84369.0,84368.0,0.20537979]
[1742619984584,0.30415954,84369.0,84368.0,0.18247979]
[1742619986984,0.30415954,84369.0,84368.0,0.15777979]
[1742619987880,0.33645954,84369.0,84368.0,0.15777979]
[1742619996094,0.33645954,84369.0,84368.0,0.15765979]
[1742619996891,0.33645954,84369.0,84368.0,0.15769979]
[1742619997798,0.33645954,84369.0,84368.0,0.15777979]
[1742619998399,0.33645954,84369.0,84368.0,0.04469979]
[1742619998590,0.33645954,84369.0,84368.0,0.15773979]
[1742620008002,0.33637954,84369.0,84368.0,0.15773979]
[1742620008206,0.33637954,84369.0,84368.0,0.15757979]
[1742620009004,0.33637954,84369.0,84368.0,0.04469979]
[1742620009194,0.33637954,84369.0,84368.0,0.15757979]
[1742620009603,0.33637954,84369.0,84368.0,0.51837979]
[1742620009803,0.33637954,84369.0,84368.0,0.40549979]
[1742620009993,0.33637954,84369.0,84368.0,0.51837979]
[1742620012602,0.33637954,84369.0,84368.0,0.40549979]
[1742620012905,0.33637954,84369.0,84368.0,0.51829979]
[1742620013798,0.33637954,84369.0,84368.0,0.15749979]
[1742620013998,0.33637954,84369.0,84368.0,0.51829979]
[1742620018805,0.33637954,84369.0,84368.0,0.15749979]
[1742620019113,0.33637954,84369.0,84368.0,0.51829979]
[1742620022412,0.33637954,84369.0,84368.0,0.40549979]